bitfinex-derivatives/quotes_BTCF0:USTF0_20251119
["timestamp","ask_amount","ask_price","bid_price","bid_amount"]
[1763567705668,0.1109488,90198.0,90197.0,0.23607]
[1763567705970,0.00016627,90207.0,90206.0,0.23607]
[1763567706158,0.11110377,90207.0,90206.0,0.23607]
[1763567706358,0.1109462,90200.0,90190.0,0.11044]
[1763567706563,0.1109532,90195.0,90194.0,0.122]
[1763567706769,0.4717484,90199.0,90198.0,0.23607]
[1763567707067,0.4717484,90199.0,90198.0,0.11407]
[1763567707372,0.4717484,90199.0,90188.0,0.00016627]
[1763567707373,0.1109531,90195.0,90194.0,0.122]
[1763567707573,0.1109531,90195.0,90194.0,0.23607]
[1763567707868,0.3457197,90189.0,90188.0,0.00016627]
[1763567708467,0.1109597,90189.0,90188.0,0.11423627]
[1763567708674,0.00219803,90190.0,90189.0,0.11407]
[1763567708863,0.00219803,90190.0,90189.0,0.23607]
[1763567709481,0.3457197,90189.0,90188.0,0.00016627]
[1763567709665,0.1110028,90154.0,90153.0,0.23616732]
[1763567709965,0.3608,90164.0,90153.0,0.23616732]
[1763567710173,0.11645803,90160.0,90153.0,9.732e-05]
[1763567710365,0.1109966,90159.0,90155.0,0.23607]
[1763567710674,0.1110003,90156.0,90155.0,0.23607]
[1763567711370,0.1110003,90156.0,90120.0,0.44691133]
[1763567711371,0.1110211,90140.0,90121.0,0.23607]
[1763567711570,0.1110396,90125.0,90121.0,0.23607]
[1763567711769,0.1110396,90125.0,90124.0,0.23607]
[1763567712074,0.1100434,90121.0,90120.0,0.3608]
[1763567712260,0.1110522,90114.0,90107.0,0.23607]
[1763567712460,0.1110522,90114.0,90111.0,0.00016638]
[1763567712665,0.1100522,90114.0,90111.0,0.00016638]
[1763567712868,0.23476,90112.0,90111.0,0.00016638]
[1763567713071,0.59556,90112.0,90111.0,0.00016638]
[1763567713267,0.1110635,90105.0,90095.0,0.1110753]
[1763567713568,0.1110635,90105.0,90094.0,0.3608]
[1763567713569,0.00219803,90100.0,90099.0,0.23607]
[1763567713771,0.00219803,90100.0,90099.0,0.11407]
[1763567714071,0.00219803,90100.0,90045.0,0.3608]
[1763567714072,0.23476,90056.0,90045.0,0.3608]
[1763567714276,0.23476,90056.0,90019.0,0.111168]
[1763567714572,0.1111346,90048.0,90025.0,0.11044]
[1763567714868,0.111124,90056.0,90046.0,0.00044412]
[1763567715071,9.998e-05,90055.0,90046.0,0.00044412]
[1763567715273,0.23476,90047.0,90046.0,0.00044412]
[1763567715868,0.1111524,90033.0,90017.0,0.00949685]
[1763567716063,0.00219803,90020.0,90019.0,0.23607]
[1763567716265,0.25796793,90040.0,90020.0,0.00219803]
[1763567716565,0.00073261,90030.0,90020.0,0.00219803]
[1763567717276,0.3608,90021.0,90020.0,0.00219803]
[1763567717669,0.3608,90021.0,90020.0,0.23826803]
[1763567718175,0.3608,90021.0,90020.0,0.11626803]
[1763567719069,0.00073261,90020.0,90006.0,0.00027776]
[1763567719270,0.59556,90009.0,90006.0,0.00027776]
[1763567719467,0.3608,90008.0,90006.0,0.00027776]
[1763567719670,0.3608,90008.0,90007.0,0.23607]
[1763567719868,0.00219803,90010.0,90009.0,0.23607]
[1763567720067,0.23476,90001.0,89974.0,0.3608]
[1763567720265,0.3608,89986.0,89968.0,0.4720315]
[1763567720480,0.3608,89986.0,89985.0,0.23607]
[1763567720771,0.3608,90020.0,90001.0,0.23607]
[1763567720965,0.3608,90020.0,90000.0,0.0779]
[1763567720966,0.00219803,90010.0,90009.0,0.11407]
[1763567721164,0.00219803,90010.0,90000.0,0.0779]
[1763567721366,0.3608,90003.0,90002.0,0.23607]
[1763567721573,0.3608,90011.0,90010.0,0.11407]
[1763567721762,0.3608,90011.0,90010.0,0.23607]
[1763567722369,0.00219803,90010.0,90001.0,0.00016667]
[1763567722673,0.3608,90003.0,90002.0,0.23607]
[1763567722881,0.3608,90018.0,90017.0,0.11407]
[1763567723077,0.3608,90018.0,90017.0,0.23607]
[1763567723583,0.111172,90017.0,90000.0,0.0779]
[1763567723781,0.3608,90007.0,90006.0,0.23607]
[1763567724169,0.3608,90007.0,89990.0,0.3608]
[1763567724170,0.3608,90007.0,89978.0,0.3608]
[1763567724372,0.00219803,90000.0,89999.0,0.23607]
[1763567725574,0.00011065,90006.0,90005.0,0.3381865]
[1763567725881,0.00011065,90006.0,90005.0,0.227]
[1763567726077,0.00011065,90006.0,90005.0,0.3381865]
[1763567726379,0.00011065,90006.0,90005.0,0.227]
[1763567726582,0.11129595,90006.0,90005.0,0.227]
[1763567727384,0.00011065,90006.0,89979.0,0.3608]
[1763567727679,0.00219803,90000.0,89999.0,0.227]
[1763567727884,0.23023,89993.0,89976.0,0.05551]
[1763567728072,0.00219803,89990.0,89989.0,0.227]
[1763567728583,0.36299803,89990.0,89989.0,0.227]
[1763567728782,0.36299803,89990.0,89985.0,0.10829]
[1763567728982,0.36299803,89990.0,89989.0,0.10829]
[1763567729482,0.36299803,89990.0,89989.0,0.227]
[1763567729677,0.00219803,89990.0,89989.0,0.227]
[1763567730079,0.00016667,89993.0,89992.0,0.227]
[1763567730580,0.00219803,89990.0,89963.0,0.3608]
[1763567730783,0.3608,89986.0,89972.0,0.3608]
[1763567730979,0.11130376,89985.0,89972.0,0.3608]
[1763567731177,9.186e-05,89985.0,89976.0,0.1112217]
[1763567731484,9.186e-05,89985.0,89974.0,0.1112248]
[1763567731790,9.186e-05,89985.0,89972.0,0.3608]
[1763567731791,9.186e-05,89985.0,89984.0,0.22789]
[1763567732678,0.00016667,89993.0,89992.0,0.23635]
[1763567732987,0.00016667,89993.0,89992.0,0.3475526]
[1763567733186,0.00016667,89993.0,89992.0,0.23635]
[1763567733782,0.00219803,89990.0,89982.0,0.06892]
[1763567733974,0.00219803,89990.0,89989.0,0.3475563]
[1763567734384,0.00219803,89990.0,89989.0,0.23635]
[1763567739386,0.00025577,89993.0,89992.0,0.23635]
[1763567740588,0.3608,90002.0,90001.0,0.3475415]
[1763567741380,0.3608,90002.0,90001.0,0.23635]
[1763567742799,0.3608,90002.0,90001.0,0.32650059]
[1763567742800,0.39373652,90002.0,90001.0,0.32650059]
[1763567745190,0.03293652,90002.0,90001.0,0.32650059]
[1763567745598,0.03224397,90002.0,90001.0,0.32650059]
[1763567745782,0.00016667,90011.0,90010.0,0.3475304]
[1763567746395,0.111186,90006.0,90001.0,0.0871007]
[1763567746593,0.3608,90002.0,90001.0,0.3475415]
[1763567746795,0.00219803,90010.0,90009.0,0.1111816]
[1763567747101,0.00219803,90010.0,90009.0,0.3475316]
[1763567747690,0.00016667,90011.0,90010.0,0.23635]
[1763567748595,0.00016667,90011.0,90009.0,0.1111816]
[1763567748596,0.03800098,90022.0,90016.0,0.23635]
[1763567748897,0.03800098,90023.0,90016.0,0.347523]
[1763567749098,0.03800098,90026.0,90025.0,0.3475116]
[1763567749396,0.3608,90032.0,90031.0,0.23635]
[1763567750496,0.10917,90028.0,90025.0,0.1111604]
[1763567750688,0.22552,90017.0,89998.0,0.471994]
[1763567750894,0.00219803,90010.0,90009.0,0.3475314]
[1763567751295,0.00219803,90010.0,90009.0,0.23635]
[1763567752198,0.1111903,90002.0,90000.0,0.00016667]
[1763567752396,0.3608,90001.0,90000.0,0.00016667]
[1763567752785,0.3608,90001.0,90000.0,0.23651667]
[1763567753488,0.3608,90001.0,90000.0,0.30543667]
[1763567755593,0.3608,90012.0,90000.0,0.06908667]
[1763567755801,0.00219803,90010.0,90009.0,0.11675]
[1763567756186,0.00219803,90010.0,90009.0,0.23635]
[1763567756387,0.00219803,90010.0,90009.0,0.3475314]
[1763567756697,0.1111913,90001.0,90000.0,0.30543667]
[1763567757097,0.1111913,90001.0,90000.0,0.23651667]
[1763567757294,0.3608,90004.0,90001.0,0.1111913]
[1763567757295,0.4719884,90004.0,90001.0,0.1111913]
[1763567757492,0.3608,90004.0,90003.0,0.11675]
[1763567757693,0.39124311,90004.0,90003.0,0.11675]
[1763567757891,0.39124311,90004.0,90003.0,0.23635]
[1763567758490,0.22552,89984.0,89966.0,1.0]
[1763567758696,0.00219803,89980.0,89979.0,0.3475684]
[1763567758898,0.00219803,89980.0,89979.0,0.7083684]
[1763567759704,0.00016667,89988.0,89987.0,0.3475586]
[1763567760004,0.02998945,89988.0,89987.0,0.23635]
[1763567760201,0.00016667,89988.0,89987.0,0.23635]
[1763567760404,0.336736,89981.0,89980.0,0.11056]
[1763567760590,0.72686195,89981.0,89980.0,0.11056]
[1763567760902,0.00219803,89980.0,89978.0,0.3608]
[1763567761115,0.00016667,89988.0,89987.0,0.23635]
[1763567762498,0.00016667,89988.0,89974.0,0.10375]
[1763567762704,0.00016667,89988.0,89979.0,0.21307]
[1763567762705,0.00219803,89980.0,89979.0,0.21307]
[1763567762899,0.10529803,89980.0,89974.0,0.3608]
[1763567763206,0.00219803,89980.0,89979.0,0.21307]
[1763567763794,0.00016667,89988.0,89987.0,0.21307]
[1763567764000,0.3608,90011.0,89997.0,0.3242662]
[1763567764194,0.00219803,90000.0,89997.0,0.3242662]
[1763567764499,0.00219803,90000.0,89999.0,0.21307]
[1763567764703,0.3608,90011.0,90010.0,0.3242502]
[1763567764900,0.3608,90020.0,90019.0,0.10375]
[1763567765106,0.36299803,90020.0,90019.0,0.10375]
[1763567765307,0.46609803,90020.0,90019.0,0.10375]
[1763567765496,0.21851,90018.0,90017.0,0.05983211]
[1763567765696,0.21851,90011.0,90010.0,0.00016667]
[1763567765898,0.1111984,89996.0,89995.0,0.21307]
[1763567766605,0.00219803,90000.0,89999.0,0.3242638]
[1763567766794,0.00219803,90000.0,89999.0,0.21307]
[1763567766999,0.11339053,90000.0,89999.0,0.21307]
[1763567767301,0.00219803,90000.0,89999.0,0.21307]
[1763567768097,0.00219803,90000.0,89999.0,0.10375]
[1763567768302,0.1111938,89999.0,89994.0,0.2217189]
[1763567768502,0.1111938,89999.0,89998.0,0.10375]
[1763567768803,0.2142987,89995.0,89994.0,0.11052]
[1763567769203,0.111197,89997.0,89994.0,0.21427]
[1763567769610,0.03800098,90067.0,89996.0,0.3608]
[1763567769903,0.1111518,90033.0,90031.0,0.07981215]
[1763567770103,0.21851,90015.0,90014.0,0.07975882]
[1763567770304,0.21851,90015.0,89990.0,0.15442337]
[1763567770305,0.21851,90011.0,90010.0,0.00219803]
[1763567770806,0.069,90020.0,90010.0,0.00219803]
[1763567770807,0.06916658,90020.0,90010.0,0.00219803]
[1763567771106,0.11092,90019.0,90011.0,0.1111789]
[1763567771317,0.11092,90019.0,90010.0,0.1566214]
[1763567771318,0.32943,90019.0,90018.0,0.7216]
[1763567772102,0.21851,90019.0,90018.0,0.7216]
[1763567772304,0.32939,90019.0,90018.0,0.7216]
[1763567772699,8e-08,90020.0,90019.0,0.1111691]
[1763567772904,0.069,90034.0,90033.0,0.1111518]
[1763567773112,0.069,90034.0,90033.0,0.8327518]
[1763567773408,0.28751,90034.0,90033.0,0.3608]
[1763567773712,0.21851,90033.0,90032.0,0.111153]
[1763567773901,0.21851,90033.0,90032.0,0.471953]
[1763567774098,0.32943,90033.0,90032.0,0.471953]
[1763567774313,0.21851,90033.0,90032.0,0.111153]
[1763567774698,0.00016658,90042.0,90041.0,0.1111419]
[1763567774903,0.21867658,90042.0,90041.0,0.4719419]
[1763567775103,0.32358468,90042.0,90041.0,0.4719419]
[1763567775410,0.32324884,90042.0,90041.0,0.3608]
[1763567775815,0.21232884,90042.0,90041.0,0.3608]
[1763567776307,0.21232884,90042.0,90032.0,0.3608]
[1763567776308,0.21851,90033.0,90032.0,0.3608]
[1763567776512,0.21851,90031.0,90030.0,0.04202272]
[1763567776900,0.21851,90031.0,90030.0,0.00219803]
[1763567777111,0.21851,90031.0,90030.0,0.04202365]
[1763567777311,0.32943,90031.0,90030.0,0.00219803]
[1763567777500,0.21851,90027.0,90026.0,0.3608]
[1763567777700,0.21851,90019.0,90018.0,0.3608]
[1763567778204,0.21398,90019.0,90018.0,0.3608]
[1763567778403,0.32939,90019.0,90018.0,0.3608]
[1763567778610,0.1031,89994.0,89993.0,0.3608]
[1763567778812,0.21851,89994.0,89990.0,0.00219803]
[1763567779009,0.3297198,89986.0,89985.0,0.00016668]
[1763567779402,0.21851,89986.0,89985.0,0.00016668]
[1763567779608,0.57931,89986.0,89985.0,0.00016668]
[1763567780815,0.69019,89986.0,89985.0,0.00016668]
[1763567781206,0.69019,89986.0,89962.0,0.08676463]
[1763567781207,0.1112605,89945.0,89941.0,0.07973752]
[1763567781409,0.11088,89944.0,89927.0,0.06381]
[1763567781714,0.11136,89943.0,89930.0,0.00219803]
[1763567781917,0.1112434,89959.0,89936.0,0.01]
[1763567782108,0.1112482,89955.0,89954.0,0.02984581]
[1763567782414,0.1112494,89954.0,89950.0,0.02984203]
[1763567782611,9.573e-05,89955.0,89953.0,0.02984203]
[1763567782812,2.32304,89954.0,89953.0,0.01996218]
[1763567783014,0.1112609,89945.0,89939.0,0.00016677]
[1763567783218,0.3508,89940.0,89939.0,0.00016677]
[1763567783513,0.3508,89940.0,89939.0,0.55580677]
[1763567784217,0.4620667,89940.0,89939.0,0.54563212]
[1763567784409,0.86238436,89940.0,89939.0,0.55563212]
[1763567784609,0.46238436,89940.0,89939.0,0.55563212]
[1763567785610,0.46238436,89940.0,89939.0,0.56563212]
[1763567786208,0.35090436,89940.0,89939.0,0.56563212]
[1763567786415,0.46242436,89940.0,89939.0,0.56563212]
[1763567787118,0.46234436,89940.0,89939.0,0.57514373]
[1763567788015,1.8307,89954.0,89940.0,0.00219803]
[1763567788215,0.135,90001.0,90000.0,0.00999999]
[1763567788417,0.26138,89971.0,89970.0,0.00999999]
[1763567788616,0.07986,89953.0,89950.0,0.00219803]
[1763567788815,0.26138,89951.0,89940.0,0.00219803]
[1763567789009,0.07986,89953.0,89941.0,0.54563212]
[1763567789214,0.11324,89952.0,89949.0,0.1112545]
[1763567789413,0.11324,89951.0,89949.0,0.1112545]
[1763567789722,0.05155229,89953.0,89951.0,0.1112526]
[1763567789917,0.11328,89952.0,89951.0,0.1112526]
[1763567790113,0.26138,89951.0,89950.0,0.00219803]
[1763567790322,0.26138,89951.0,89950.0,0.11345233]
[1763567790618,0.00016677,89956.0,89955.0,0.1112481]
[1763567790619,7e-08,89956.0,89955.0,0.1112481]
[1763567790922,0.3608,89992.0,89975.0,0.1112234]
[1763567791110,0.16582,89976.0,89974.0,0.1112236]
[1763567791307,0.07986,89976.0,89972.0,0.03714008]
[1763567791510,0.11324,89975.0,89971.0,0.54563212]
[1763567791717,0.135,89972.0,89971.0,0.5827722]
[1763567791914,0.2482,89972.0,89971.0,0.5827722]
[1763567792114,0.135,89972.0,89971.0,0.5827722]
[1763567792318,0.2482,89972.0,89971.0,0.54563212]
[1763567792512,0.38107,89972.0,89971.0,0.54563212]
[1763567793521,0.38103,89972.0,89971.0,0.54563212]
[1763567793720,0.38099,89972.0,89971.0,0.54563212]
[1763567794219,0.4003958,89965.0,89964.0,0.00016677]
[1763567794519,0.28916,89941.0,89938.0,0.1112685]
[1763567794722,0.64996,89941.0,89940.0,0.00219803]
[1763567794910,0.76304,89941.0,89940.0,0.00219803]
[1763567795522,0.3608,89941.0,89940.0,0.03933811]
[1763567795824,0.47384,89941.0,89940.0,0.03933811]
[1763567797109,0.3608,89941.0,89940.0,0.03933811]
[1763567797314,0.3608,89941.0,89940.0,0.33417811]
[1763567797720,0.4738,89941.0,89940.0,0.33417811]
[1763567798018,0.3608,89941.0,89940.0,0.33417811]
[1763567798218,0.00016677,89949.0,89948.0,0.29384]
[1763567798418,0.00016677,89949.0,89948.0,0.69178008]
[1763567798629,0.15442337,89990.0,89948.0,0.69178008]
[1763567798630,0.3608,89983.0,89964.0,0.111237]
[1763567798816,0.47376,89965.0,89964.0,0.14837708]
[1763567799316,0.62905,89965.0,89964.0,0.03714008]
[1763567799619,0.111237,89964.0,89960.0,0.00219803]
[1763567799816,0.1112395,89962.0,89960.0,0.00219803]
[1763567800019,0.11292,89961.0,89960.0,0.00219803]
[1763567800221,0.1112395,89962.0,89960.0,0.00219803]
[1763567800521,0.11292,89961.0,89960.0,0.00219803]
[1763567801021,0.11292,89961.0,89960.0,0.03933811]
[1763567801223,0.40208,89961.0,89960.0,0.03933811]
[1763567801616,0.1112395,89962.0,89960.0,0.03933811]
[1763567801924,0.1112395,89962.0,89961.0,0.03714008]
[1763567802124,0.38048991,90028.0,89962.0,0.1112395]
[1763567802425,0.07815,90320.0,89961.0,0.33098008]
[1763567802426,0.07815,90016.0,90001.0,0.0593281]
[1763567802615,0.07815,90016.0,89958.0,0.00324456]
[1763567802616,0.07815,89984.0,89958.0,0.00324456]
[1763567802817,0.07815,89984.0,89930.0,0.09890028]
[1763567802818,0.30937878,89968.0,89930.0,0.09890028]
[1763567803024,0.30937878,89968.0,89926.0,0.00027801]
[1763567803025,0.08768,89978.0,89960.0,0.00219803]
[1763567803219,0.11424,89977.0,89960.0,0.00236478]
[1763567803426,0.00016675,89978.0,89960.0,0.00236478]
[1763567803427,0.1142,89976.0,89960.0,0.00236478]
[1763567803629,0.00012355,89975.0,89960.0,0.00236478]
[1763567803823,0.00012355,89975.0,89973.0,0.1112251]
[1763567804030,0.00012355,89975.0,89974.0,0.7216]
[1763567804230,0.10928355,89975.0,89974.0,0.7216]
[1763567804735,0.00012355,89975.0,89974.0,0.7216]
[1763567805027,0.11428355,89975.0,89974.0,0.7216]
[1763567805222,0.00012355,89975.0,89974.0,0.7216]
[1763567805527,0.00016675,89978.0,89974.0,0.7216]
[1763567805528,0.00016675,89978.0,89975.0,0.1112235]
[1763567806231,0.00016675,89978.0,89974.0,0.7216]
[1763567807338,0.00016675,89978.0,89975.0,0.001]
[1763567807525,0.00016675,89978.0,89976.0,0.1112223]
[1763567807724,0.00016675,89978.0,89977.0,0.03975548]
[1763567808325,0.00016675,89978.0,89974.0,0.7216]
[1763567808726,0.111221,89977.0,89974.0,0.7216]
[1763567809032,0.00016675,89978.0,89974.0,0.8328244]
[1763567810028,0.07815,89984.0,89981.0,0.111215]
[1763567810223,0.07815,89984.0,89983.0,0.3608]
[1763567810427,0.07815,89984.0,89983.0,0.4720136]
[1763567810833,0.07815,89984.0,89983.0,0.3608]
[1763567813239,0.19199,89984.0,89983.0,0.3608]
[1763567813538,0.1112235,89975.0,89974.0,0.3608]
[1763567813936,0.34667939,89984.0,89974.0,0.3608]
[1763567814129,0.45789179,89984.0,89983.0,0.3608]
[1763567814332,0.19199,89984.0,89983.0,0.3608]
[1763567814638,0.19195,89984.0,89983.0,0.3608]
[1763567815032,0.19195,89984.0,89980.0,0.00219803]
[1763567815033,0.1112136,89983.0,89980.0,0.00219803]
[1763567815429,0.1112235,89975.0,89974.0,0.3608]
[1763567816137,0.1112235,89975.0,89960.0,0.00016675]
[1763567816138,0.1112333,89967.0,89966.0,0.03979978]
[1763567816435,0.1112395,89962.0,89960.0,0.00016675]
[1763567816633,0.1112543,89950.0,89948.0,0.03979978]
[1763567816829,0.1112605,89945.0,89944.0,0.03979978]
[1763567817030,0.1112655,89941.0,89940.0,0.03979978]
[1763567817230,0.1112655,89941.0,89940.0,0.04199781]
[1763567817429,0.1112655,89941.0,89940.0,0.00219803]
[1763567817632,0.2239455,89941.0,89940.0,0.00219803]
[1763567817827,0.1102655,89941.0,89940.0,0.00219803]
[1763567818029,0.2239055,89941.0,89940.0,0.00219803]
[1763567818237,0.1112568,89948.0,89941.0,0.1112655]
[1763567818532,0.1112629,89944.0,89942.0,0.03987347]
[1763567818837,0.1112655,89941.0,89940.0,0.00219803]
[1763567819029,0.11368,89947.0,89940.0,0.00219803]
[1763567819234,0.11368,89947.0,89944.0,0.1112617]
[1763567819433,0.11142355,89949.0,89943.0,0.03986259]
[1763567819434,0.00016675,89949.0,89946.0,0.1112581]
[1763567819735,0.1136,89948.0,89946.0,0.1112581]
[1763567819931,0.00016675,89949.0,89946.0,0.1112581]
[1763567820334,0.1112605,89945.0,89944.0,0.001]
[1763567820534,0.1112605,89945.0,89944.0,0.04085883]
[1763567820731,0.4720605,89945.0,89944.0,0.001]
[1763567821037,0.1112754,89933.0,89932.0,0.04002558]
[1763567821235,0.1112793,89930.0,89911.0,0.07959956]
[1763567821542,0.3608,89921.0,89910.0,0.00219803]
[1763567821739,0.11356,89920.0,89910.0,0.36299803]
[1763567822037,0.1112814,89929.0,89921.0,0.1112893]
[1763567822337,0.1112887,89923.0,89920.0,0.00219803]
[1763567822540,0.1112902,89921.0,89920.0,0.00219803]
[1763567822731,0.11356,89922.0,89921.0,0.1112902]
[1763567822928,0.00010717,89928.0,89920.0,0.11348863]
[1763567823125,0.2248028,89927.0,89920.0,0.00073267]
[1763567823334,0.11352,89927.0,89920.0,0.11202327]
[1763567823636,0.1112836,89927.0,89921.0,0.1112902]
[1763567823828,0.00010717,89928.0,89924.0,0.1112854]
[1763567824036,0.00010717,89928.0,89927.0,0.34357]
[1763567824331,0.3608,89954.0,89933.0,0.4548454]
[1763567824526,0.3608,89954.0,89936.0,0.08887]
[1763567824731,0.1112286,89971.0,89953.0,0.34357]
[1763567824927,0.1112106,89986.0,89962.0,0.3608]
[1763567825128,0.00219803,89990.0,89983.0,0.1112128]
[1763567825334,0.00219803,89990.0,89981.0,0.111216]
[1763567825528,0.00219803,89990.0,89984.0,0.111212]
[1763567825736,0.00219803,89990.0,89987.0,0.1112084]
[1763567826038,0.00219803,89990.0,89980.0,0.20081977]
[1763567826337,0.472016,89981.0,89980.0,0.00073267]
[1763567826545,0.472016,89981.0,89977.0,0.00016675]
[1763567826546,0.1112185,89979.0,89977.0,5e-08]
[1763567826842,0.3608,89978.0,89952.0,0.1112509]
[1763567827037,0.3608,89978.0,89947.0,0.3608]
[1763567827038,0.3608,89965.0,89960.0,0.00073267]
[1763567827240,0.111237,89964.0,89960.0,0.00073267]
[1763567828239,0.3608,89961.0,89960.0,0.00073267]
[1763567828939,0.1112494,89954.0,89953.0,0.00016675]
[1763567830748,0.3608,89961.0,89953.0,0.00016675]
[1763567830944,0.00219803,89960.0,89953.0,0.00016675]
[1763567831143,0.1112487,89955.0,89953.0,0.00016675]
[1763567831332,0.00219803,89960.0,89954.0,0.34357]
[1763567831536,0.1112473,89956.0,89954.0,0.34357]
[1763567831740,0.1112473,89956.0,89953.0,0.00016675]
[1763567832039,0.1112593,89946.0,89937.0,0.3608]
[1763567832234,0.11344,89965.0,89937.0,0.3608]
[1763567832235,0.3608,89968.0,89952.0,0.08887]
[1763567832438,0.3608,89973.0,89960.0,0.00219803]
[1763567832840,0.3608,89961.0,89943.0,0.05967579]
[1763567833046,0.3608,89949.0,89943.0,0.00016675]
[1763567833240,0.36096675,89961.0,89954.0,0.1112492]
[1763567833538,0.1112508,89953.0,89950.0,0.00219803]
[1763567834134,0.36096675,89961.0,89950.0,0.00219803]
[1763567834135,0.36096675,89961.0,89957.0,0.1112454]
[1763567834536,0.36096675,89961.0,89960.0,0.1112419]
[1763567834744,0.11348675,89961.0,89960.0,0.00219803]
[1763567835444,0.11448675,89961.0,89944.0,0.42047579]
[1763567835643,0.4720531,89951.0,89950.0,0.00219803]
[1763567836163,0.4356117,89944.0,89943.0,5e-08]
[1763567836443,0.4356117,89944.0,89912.0,0.13964462]
[1763567836444,0.3608,89944.0,89911.0,0.42047579]
[1763567836641,0.1112692,89938.0,89930.0,0.111278]
[1763567836842,0.1112716,89936.0,89931.0,0.1112778]
[1763567837041,0.1112778,89931.0,89930.0,0.00219803]
[1763567837245,0.11332,89931.0,89930.0,0.00219803]
[1763567837449,0.2245978,89931.0,89930.0,0.00219803]
[1763567837651,0.1112946,89918.0,89916.0,0.05967579]
[1763567837853,0.1112847,89926.0,89921.0,0.1112902]
[1763567838148,0.3608,89932.0,89930.0,0.1112781]
[1763567838341,0.00016675,89939.0,89938.0,0.1112692]
[1763567838543,0.00016675,89939.0,89938.0,0.4548392]
[1763567838738,0.11348675,89939.0,89938.0,0.4548392]
[1763567839050,0.4720331,89968.0,89953.0,0.34357]
[1763567839051,0.11332,89954.0,89953.0,0.34357]
[1763567839437,0.1112506,89953.0,89950.0,0.00219803]
[1763567840148,0.1112617,89944.0,89943.0,0.00016675]
[1763567840346,0.11328,89945.0,89943.0,0.00016675]
[1763567840546,0.1112617,89944.0,89943.0,0.00016675]
[1763567841349,0.4720457,89957.0,89952.0,0.1112513]
[1763567841546,0.1112506,89953.0,89950.0,0.00219803]
[1763567841850,0.1112531,89951.0,89950.0,0.00219803]
[1763567842157,0.4356031,89951.0,89950.0,0.00219803]
[1763567842455,0.2890617,89944.0,89943.0,0.00016675]
[1763567842756,0.7964117,89944.0,89943.0,0.00016675]
[1763567843841,0.1112879,89923.0,89921.0,0.05966319]
[1763567844053,0.11312,89924.0,89923.0,0.34357]
[1763567844351,0.11312,89924.0,89923.0,0.40323319]
[1763567844659,0.11312,89924.0,89923.0,0.34357]
[1763567844952,0.11312,89924.0,89923.0,0.40323319]
[1763567845155,0.1112877,89923.0,89921.0,0.06066319]
[1763567845456,0.1112877,89923.0,89920.0,0.00219803]
[1763567845457,0.1102877,89923.0,89920.0,0.06186122]
[1763567845759,0.08357198,89923.0,89920.0,0.00219803]
[1763567846247,0.43757198,89923.0,89922.0,0.02989307]
[1763567846446,0.16802,89921.0,89920.0,0.00219803]
[1763567846648,0.16802,89921.0,89910.0,0.05966319]
[1763567846649,0.4652914,89920.0,89918.0,0.02989307]
[1763567846851,0.4652939,89918.0,89917.0,0.02989307]
[1763567847152,0.3608,89942.0,89931.0,0.36738]
[1763567847355,0.1112752,89934.0,89931.0,0.36738]
[1763567847557,0.1112778,89931.0,89930.0,0.00219803]
[1763567847745,0.2793028,89927.0,89926.0,0.02988279]
[1763567848261,0.4652828,89927.0,89926.0,0.02987983]
[1763567848853,0.47404675,89932.0,89930.0,0.00219803]
[1763567849058,0.1112778,89931.0,89930.0,0.00219803]
[1763567849553,0.4652827,89927.0,89926.0,0.02987889]
[1763567849751,0.354,89924.0,89923.0,0.02987889]
[1763567849946,0.47404675,89932.0,89917.0,0.3628]
[1763567849947,0.1112877,89923.0,89921.0,0.1112894]
[1763567850156,0.1102877,89923.0,89920.0,0.00219803]
[1763567850548,0.16802,89921.0,89920.0,0.00219803]
[1763567850745,0.1102877,89923.0,89917.0,0.3608]
[1763567850746,0.354,89918.0,89917.0,0.3608]
[1763567850946,0.16802,89921.0,89920.0,0.00219803]
[1763567851145,0.353,89921.0,89920.0,0.00219803]
[1763567851363,0.1112914,89920.0,89919.0,0.02987795]
[1763567851559,0.1112914,89920.0,89908.0,0.17096869]
[1763567851860,0.70399,89914.0,89913.0,0.03983898]
[1763567852059,0.2842901,89913.0,89912.0,0.03983898]
[1763567852258,0.4544901,89913.0,89912.0,0.03983898]
[1763567852450,0.4544901,89913.0,89911.0,0.03983898]
[1763567852652,0.4544926,89911.0,89905.0,0.03983898]
[1763567852853,0.1113088,89906.0,89905.0,0.03983898]
[1763567853053,0.11296,89914.0,89907.0,0.1113067]
[1763567853255,0.1113074,89908.0,89907.0,0.03983898]
[1763567853455,0.4720981,89915.0,89913.0,0.1112995]
[1763567853662,0.3608,89915.0,89913.0,0.1112995]
[1763567853850,0.3608,89915.0,89910.0,0.00219803]
[1763567853851,0.11288,89914.0,89912.0,0.3608]
[1763567854057,0.34319,89913.0,89912.0,0.3608]
[1763567854258,0.34319,89911.0,89910.0,0.00219803]
[1763567855563,0.1113112,89904.0,89903.0,0.03983898]
[1763567855749,0.2241512,89904.0,89903.0,0.03983898]
[1763567855955,0.1112967,89916.0,89913.0,0.1112991]
[1763567856154,0.00016684,89917.0,89916.0,0.1112964]
[1763567856464,0.1113025,89912.0,89910.0,0.03983561]
[1763567857260,0.1113025,89912.0,89911.0,0.03983561]
[1763567857461,0.1113025,89912.0,89910.0,0.04203364]
[1763567857660,0.1113025,89912.0,89910.0,0.15333644]
[1763567857860,0.11284,89911.0,89910.0,0.15333644]
[1763567858262,0.00016684,89917.0,89914.0,0.1112978]
[1763567858459,0.1113022,89912.0,89911.0,0.35413]
[1763567858670,0.1128,89916.0,89910.0,0.00219803]
[1763567858671,0.1128,89916.0,89915.0,0.1112976]
[1763567858857,0.00016684,89917.0,89915.0,0.1112976]
[1763567859169,0.2240564,89916.0,89914.0,0.03987052]
[1763567859354,0.2240564,89916.0,89915.0,0.03987052]
[1763567859554,0.2240564,89916.0,89914.0,0.15116832]
[1763567859762,0.11272,89915.0,89914.0,0.03987052]
[1763567859960,0.11272,89915.0,89913.0,0.03987052]
[1763567859961,0.4544888,89914.0,89913.0,0.03987052]
[1763567860262,0.4544888,89914.0,89910.0,0.00219803]
[1763567860263,0.4544926,89911.0,89910.0,0.00219803]
[1763567860854,0.5671726,89911.0,89910.0,0.00219803]
[1763567861050,0.2239826,89911.0,89910.0,0.00219803]
[1763567861254,0.11268,89911.0,89910.0,0.00219803]
[1763567861961,0.3608,89914.0,89910.0,0.16990803]
[1763567862255,0.00016684,89917.0,89915.0,0.1112965]
[1763567862456,0.1126,89916.0,89915.0,0.1112965]
[1763567862760,0.00016684,89917.0,89915.0,0.1112965]